bitfinex/quotes_BTCUSD_20250812
["timestamp","ask_amount","ask_price","bid_price","bid_amount"]
[1755042513250,1.17100058,120120.0,120110.0,0.20498]
[1755042513425,1.17298058,120120.0,120110.0,0.3327]
[1755042513626,0.68321637,120120.0,120110.0,0.3327]
[1755042513958,0.68123637,120120.0,120110.0,0.3327]
[1755042514151,0.19147216,120120.0,120110.0,0.3327]
[1755042514368,0.19147216,120120.0,120110.0,0.4827]
[1755042514924,0.19147216,120120.0,120110.0,0.35498]
[1755042515137,0.1664863,120130.0,120120.0,0.15]
[1755042515354,0.1664863,120130.0,120120.0,0.28468125]
[1755042515589,0.1664863,120130.0,120120.0,0.2826]
[1755042516823,0.1664863,120130.0,120120.0,0.2836]
[1755042521640,0.1664863,120130.0,120120.0,0.15588]
[1755042521822,0.1664863,120130.0,120120.0,0.28568125]
[1755042522030,0.1664863,120130.0,120120.0,0.2836]
[1755042523935,0.1664863,120130.0,120120.0,0.15588]
[1755042524150,0.1664863,120130.0,120120.0,0.28568125]
[1755042524363,0.1664863,120130.0,120120.0,0.15588]
[1755042524564,0.1664863,120130.0,120120.0,0.28568125]
[1755042524865,0.1664863,120130.0,120120.0,0.2836]
[1755042525733,0.1664863,120130.0,120120.0,0.15588]
[1755042525870,0.1664863,120130.0,120120.0,0.28356]
[1755042527428,0.1664863,120130.0,120120.0,0.15588]
[1755042527599,0.1664863,120130.0,120120.0,0.28564125]
[1755042527798,0.1664863,120130.0,120120.0,0.28356]
[1755042528004,0.08253719,120140.0,120130.0,0.55]
[1755042528206,0.08253719,120140.0,120130.0,0.8490463]
[1755042528411,0.08253719,120140.0,120130.0,0.93176955]
[1755042528669,0.16652103,120140.0,120130.0,0.82905455]
[1755042528866,4.859e-05,120140.0,120130.0,0.95673455]
[1755042529439,0.16652103,120140.0,120130.0,0.95673455]
[1755042530756,0.16652103,120140.0,120130.0,0.95773455]
[1755042530957,0.16652103,120140.0,120130.0,0.83005455]
[1755042531356,0.16652103,120140.0,120130.0,0.95773455]
[1755042536117,0.16652103,120140.0,120130.0,1.29069455]
[1755042541985,4.859e-05,120140.0,120130.0,1.16301455]
[1755042542293,4.859e-05,120140.0,120130.0,1.29069455]
[1755042543204,4.859e-05,120140.0,120130.0,1.16301455]
[1755042543688,4.859e-05,120140.0,120130.0,1.29069455]
[1755042544012,4.859e-05,120140.0,120130.0,1.16301455]
[1755042544210,4.859e-05,120140.0,120130.0,1.29069455]
[1755042545067,4.859e-05,120140.0,120130.0,1.29269455]
[1755042546081,4.859e-05,120140.0,120130.0,1.16501455]
[1755042546289,4.859e-05,120140.0,120130.0,1.29265455]
[1755042549018,4.859e-05,120140.0,120130.0,1.29165455]
[1755042550267,4.859e-05,120140.0,120130.0,1.29465455]
[1755042552039,4.859e-05,120140.0,120130.0,1.51579955]
[1755042552278,4.859e-05,120140.0,120130.0,1.69020365]
[1755042552498,4.859e-05,120140.0,120130.0,1.66623955]
[1755042552725,4.859e-05,120140.0,120130.0,1.53859955]
[1755042552947,4.859e-05,120140.0,120130.0,1.66623955]
[1755042553401,4.859e-05,120140.0,120130.0,1.53859955]
[1755042553880,4.859e-05,120140.0,120130.0,1.66623955]
[1755042554104,4.859e-05,120140.0,120130.0,1.69020365]
[1755042554376,4.859e-05,120140.0,120130.0,1.66623955]
[1755042555244,4.859e-05,120140.0,120130.0,1.53859955]
[1755042555455,4.859e-05,120140.0,120130.0,1.69020365]
[1755042556209,4.859e-05,120140.0,120130.0,1.56256365]
[1755042556416,4.859e-05,120140.0,120130.0,1.69020365]
[1755042556671,4.859e-05,120140.0,120130.0,1.68720365]
[1755042556866,4.859e-05,120140.0,120130.0,1.68520365]
[1755042557070,4.859e-05,120140.0,120130.0,1.68720365]
[1755042557490,4.859e-05,120140.0,120130.0,1.68520365]
[1755042557664,4.859e-05,120140.0,120130.0,1.69020365]
[1755042557866,4.859e-05,120140.0,120130.0,1.53859955]
[1755042558181,4.859e-05,120140.0,120130.0,1.66623955]
[1755042558598,4.859e-05,120140.0,120130.0,1.67023955]
[1755042559601,4.859e-05,120140.0,120130.0,1.54259955]
[1755042559816,4.859e-05,120140.0,120130.0,1.67023955]
[1755042560507,4.859e-05,120140.0,120130.0,1.54259955]
[1755042560917,4.859e-05,120140.0,120130.0,1.67019955]
[1755042562191,4.859e-05,120140.0,120130.0,1.54259955]
[1755042562410,4.859e-05,120140.0,120130.0,1.67019955]
[1755042562567,4.859e-05,120140.0,120130.0,1.54259955]
[1755042562777,4.859e-05,120140.0,120130.0,1.67019955]
[1755042563005,4.859e-05,120140.0,120130.0,1.64739955]
[1755042563563,4.859e-05,120140.0,120130.0,1.51979955]
[1755042563690,4.859e-05,120140.0,120130.0,1.64739955]
[1755042565984,4.859e-05,120140.0,120130.0,1.51979955]
[1755042566186,4.859e-05,120140.0,120130.0,1.64739955]
[1755042567205,4.859e-05,120140.0,120130.0,1.51979955]
[1755042567367,4.859e-05,120140.0,120130.0,1.64739955]
[1755042567797,4.859e-05,120140.0,120130.0,1.51979955]
[1755042568003,4.859e-05,120140.0,120130.0,1.64739955]
[1755042572722,4.859e-05,120140.0,120130.0,1.51979955]
[1755042572931,4.859e-05,120140.0,120130.0,1.64739955]
[1755042573177,4.859e-05,120140.0,120130.0,1.51979955]
[1755042573418,4.859e-05,120140.0,120130.0,1.64739955]
[1755042575196,4.859e-05,120140.0,120130.0,1.51979955]
[1755042575408,4.859e-05,120140.0,120130.0,1.64747955]
[1755042586026,4.859e-05,120140.0,120130.0,1.84699955]
[1755042586712,4.859e-05,120140.0,120130.0,1.71931955]
[1755042586924,0.00202859,120140.0,120130.0,1.51770055]
[1755042587178,0.00202859,120140.0,120130.0,1.64530055]
[1755042587348,0.00202859,120140.0,120130.0,1.65056055]
[1755042587791,0.00202859,120140.0,120130.0,1.64854055]
[1755042588206,0.00173209,120140.0,120130.0,1.64854055]
[1755042588586,0.00173209,120140.0,120130.0,1.65056055]
[1755042588825,0.00185,120160.0,120150.0,0.86645859]
[1755042588981,0.00334,120160.0,120150.0,1.40970184]
[1755042589180,0.00334,120160.0,120150.0,1.28210184]
[1755042589384,0.00334,120160.0,120150.0,1.40970184]
[1755042589663,0.00334,120160.0,120150.0,1.43465884]
[1755042590752,0.00334,120160.0,120150.0,1.43965884]
[1755042590939,0.00334,120160.0,120150.0,1.63917884]
[1755042594006,0.00149,120160.0,120150.0,1.63917884]
[1755042594290,0.00149,120160.0,120150.0,1.51157884]
[1755042594491,0.00149,120160.0,120150.0,1.63917884]
[1755042596729,0.00149,120160.0,120150.0,1.51157884]
[1755042596931,0.00149,120160.0,120150.0,1.63917884]
[1755042599156,0.00149,120160.0,120150.0,1.51157884]
[1755042599354,0.00149,120160.0,120150.0,1.63917884]
[1755042601628,0.00149,120160.0,120150.0,1.64222884]
[1755042602729,0.00149,120160.0,120150.0,1.64435884]
[1755042604513,0.00149,120160.0,120150.0,1.63917884]
[1755042605179,0.00149,120160.0,120150.0,1.64435884]
[1755042607542,0.17475243,120170.0,120150.0,1.64435884]
[1755042607713,0.17475243,120170.0,120160.0,0.21032325]
[1755042607864,0.17673243,120170.0,120160.0,0.54321325]
[1755042608296,0.17673243,120170.0,120160.0,0.56817025]
[1755042610062,0.17673243,120170.0,120160.0,0.76769025]
[1755042610222,0.17673243,120170.0,120160.0,0.77617834]
[1755042610421,0.17673243,120170.0,120160.0,0.77817834]
[1755042610620,0.17673243,120170.0,120160.0,0.78017834]
[1755042613875,0.17673243,120170.0,120160.0,0.65257834]
[1755042614074,0.6659247,120170.0,120160.0,0.64409025]
[1755042614282,0.17833243,120170.0,120160.0,0.77169025]
[1755042614490,0.17673243,120170.0,120160.0,0.77169025]
[1755042616060,0.17673243,120170.0,120160.0,0.74673325]
[1755042616581,0.17673243,120170.0,120160.0,0.75307218]
[1755042616905,0.17673243,120170.0,120160.0,0.75407218]
[1755042617108,0.17673243,120170.0,120160.0,0.75207218]
[1755042617259,0.17673243,120170.0,120160.0,0.75307218]
[1755042618732,0.17673243,120170.0,120160.0,0.75825218]
[1755042618937,0.17475243,120170.0,120160.0,0.75825218]
[1755042619156,0.17475243,120170.0,120160.0,0.63065218]
[1755042619364,0.17673243,120170.0,120160.0,0.62547218]
[1755042619578,0.17673243,120170.0,120160.0,0.75303218]
[1755042619985,0.17673243,120170.0,120160.0,0.75608218]
[1755042620607,0.17673243,120170.0,120160.0,0.75821218]
[1755042621817,0.17475243,120170.0,120160.0,0.75821218]
[1755042623112,0.17475243,120170.0,120160.0,0.78317018]
[1755042625097,0.17475243,120170.0,120160.0,0.65561018]
[1755042625309,0.17475243,120170.0,120160.0,0.78317018]
[1755042625490,0.17475243,120170.0,120160.0,0.65561018]
[1755042625785,0.17475243,120170.0,120160.0,0.78317018]
[1755042630269,0.17475243,120170.0,120160.0,0.65561018]
[1755042630456,0.17475243,120170.0,120160.0,0.78317018]
[1755042631399,0.16643088,120170.0,120160.0,1.64961492]
[1755042634659,0.16643088,120170.0,120160.0,1.52205492]
[1755042634862,0.16643088,120170.0,120160.0,1.35561018]
[1755042635161,0.16643088,120170.0,120160.0,1.48317018]
[1755042636177,0.16643088,120170.0,120160.0,1.64961492]
[1755042637116,0.16643088,120170.0,120160.0,1.52205492]
[1755042637324,0.16643088,120170.0,120160.0,1.64961492]
[1755042642783,0.16643088,120170.0,120160.0,1.64957492]
[1755042642984,0.16643088,120170.0,120160.0,1.52205492]
[1755042643183,0.16643088,120170.0,120160.0,1.64957492]
[1755042644658,0.16643088,120170.0,120160.0,1.35561018]
[1755042644877,0.16643088,120170.0,120160.0,1.48313018]
[1755042645057,0.16643088,120170.0,120160.0,1.64957492]
[1755042646716,0.16643088,120170.0,120160.0,1.35561018]
[1755042647016,0.16643088,120170.0,120160.0,1.48313018]
[1755042647957,0.16643088,120170.0,120160.0,1.35561018]
[1755042648158,0.16643088,120170.0,120160.0,1.48313018]
[1755042652260,0.16643088,120170.0,120160.0,1.35561018]
[1755042652450,0.16643088,120170.0,120160.0,1.48313018]
[1755042654737,0.16643088,120170.0,120160.0,1.64957492]
[1755042654916,0.16643088,120170.0,120160.0,1.52205492]
[1755042655172,0.16643088,120170.0,120160.0,1.64957492]
[1755042656047,0.16643088,120170.0,120160.0,1.48313018]
[1755042657334,0.16643088,120170.0,120160.0,1.64957492]
[1755042657657,0.16643088,120170.0,120160.0,1.48313018]
[1755042658682,0.16643088,120170.0,120160.0,1.64957492]
[1755042659689,0.0004,120180.0,120170.0,0.16643088]
[1755042659839,0.00054585,120180.0,120170.0,0.58401413]
[1755042660047,0.00054585,120180.0,120170.0,0.71447413]
[1755042660503,0.00054585,120180.0,120170.0,0.58699413]
[1755042660692,0.00054585,120180.0,120170.0,0.73942513]
[1755042660985,0.00054585,120180.0,120170.0,0.74142513]
[1755042662031,0.00054585,120180.0,120170.0,0.74342513]
[1755042668902,0.00054585,120180.0,120170.0,0.61594513]
[1755042669107,0.16894289,120180.0,120170.0,0.64453425]
[1755042669313,0.16894289,120180.0,120170.0,1.08844513]
[1755042669886,0.16894289,120180.0,120170.0,1.09142513]
[1755042670308,0.16894289,120180.0,120170.0,1.09342513]
[1755042670755,0.16894289,120180.0,120170.0,1.59342513]
[1755042672420,0.00252585,120180.0,120170.0,1.59342513]
[1755042672597,0.00054585,120180.0,120170.0,1.59342513]
[1755042673621,0.00054585,120180.0,120170.0,1.46594513]
[1755042673822,0.00054585,120180.0,120170.0,1.59342513]
[1755042673976,0.16696289,120180.0,120170.0,1.59342513]
[1755042674199,0.00054585,120180.0,120170.0,1.59342513]
[1755042679480,0.00054585,120180.0,120170.0,2.79260713]
[1755042679686,0.00054585,120180.0,120170.0,2.94309899]
[1755042679893,0.00054585,120180.0,120170.0,2.81565899]
[1755042680097,0.00054585,120180.0,120170.0,2.94309899]
[1755042680300,0.0004,120190.0,120170.0,2.94309899]
[1755042680301,0.0004,120190.0,120180.0,0.33386606]
[1755042680452,0.0004,120190.0,120180.0,1.59562102]
[1755042680661,0.0004,120190.0,120180.0,1.59860102]
[1755042681064,0.0004,120190.0,120180.0,1.49610602]
[1755042681274,0.16879319,120190.0,120180.0,0.79197825]
[1755042681475,0.16879319,120190.0,120180.0,0.91741825]
[1755042681692,0.16879319,120190.0,120180.0,1.13997825]
[1755042682048,0.16879319,120190.0,120180.0,1.26741825]
[1755042682491,0.16879319,120190.0,120180.0,1.27041825]
[1755042682671,0.16879319,120190.0,120180.0,1.24547325]
[1755042682868,0.16879319,120190.0,120180.0,1.24247325]
[1755042684480,0.16879319,120190.0,120180.0,1.24347325]
[1755042685464,0.16879319,120190.0,120180.0,1.24547325]
[1755042686297,0.16658016,120200.0,120190.0,0.33120681]
[1755042686459,0.16640016,120200.0,120190.0,0.79145681]
[1755042688099,0.16840016,120200.0,120190.0,0.79145681]
[1755042689709,0.16840016,120200.0,120190.0,0.66401681]
[1755042689837,0.16840016,120200.0,120190.0,0.99093681]
[1755042692381,0.16840016,120200.0,120190.0,0.66401681]
[1755042692595,0.6031447,120200.0,120190.0,0.99093681]
[1755042692811,0.16840016,120200.0,120190.0,0.99093681]
[1755042695202,0.16857016,120200.0,120190.0,0.99093681]
[1755042695404,0.16857016,120200.0,120190.0,0.99398681]
[1755042699531,0.6033147,120200.0,120190.0,0.99398681]
[1755042699670,0.6033147,120200.0,120190.0,0.66401681]
[1755042699874,0.6033147,120200.0,120190.0,1.06349681]
[1755042700285,0.6033147,120200.0,120190.0,1.19093681]
[1755042700708,0.6033147,120200.0,120190.0,1.06349681]
[1755042701273,0.6033147,120200.0,120190.0,1.19093681]
[1755042704727,0.65769546,120200.0,120190.0,1.19398681]
[1755042705690,0.65769546,120200.0,120190.0,1.19596681]
[1755042706510,0.16857016,120200.0,120190.0,1.06852681]
[1755042706716,0.65752546,120200.0,120190.0,1.19592681]
[1755042708173,0.16840016,120200.0,120190.0,1.19592681]
[1755042708431,0.65752546,120200.0,120190.0,1.19592681]
[1755042712026,0.65752546,120200.0,120190.0,0.86904681]
[1755042712226,0.65752546,120200.0,120190.0,1.19592681]
[1755042713335,0.65752546,120200.0,120190.0,0.86904681]
[1755042713572,0.65752546,120200.0,120190.0,1.19592681]
[1755042714270,0.16840016,120200.0,120190.0,1.21852681]
[1755042714875,0.16840016,120200.0,120190.0,1.34592681]
[1755042718662,0.16840016,120200.0,120190.0,1.21852681]
[1755042718884,0.65752546,120200.0,120190.0,1.21852681]
[1755042719041,0.65777546,120200.0,120190.0,1.34608681]
[1755042719645,0.16865016,120200.0,120190.0,1.34608681]
[1755042719894,0.65777546,120200.0,120190.0,1.21852681]
[1755042720098,0.16865016,120200.0,120190.0,1.34644681]
[1755042720318,0.65777546,120200.0,120190.0,1.34644681]
[1755042720567,0.65777546,120200.0,120190.0,1.21852681]
[1755042720740,0.65777546,120200.0,120190.0,1.34648681]
[1755042720935,0.65752546,120200.0,120190.0,1.34648681]
[1755042721163,0.65752546,120200.0,120190.0,1.34644681]
[1755042721515,0.65752546,120200.0,120190.0,0.99644681]
[1755042721713,0.16840016,120200.0,120190.0,0.99644681]
[1755042721915,0.65752546,120200.0,120190.0,0.99644681]
[1755042722121,0.65752546,120200.0,120190.0,1.19644681]
[1755042723071,0.65777546,120200.0,120190.0,1.19141681]
[1755042723463,0.65777546,120200.0,120190.0,1.19457681]
[1755042723664,0.65777546,120200.0,120190.0,1.19453681]
[1755042724452,0.65777546,120200.0,120190.0,1.06349681]
[1755042724656,0.65777546,120200.0,120190.0,0.86349681]
[1755042724657,1.16450978,120200.0,120190.0,0.86349681]
[1755042724869,0.68317653,120200.0,120190.0,0.99577681]
[1755042725084,0.68317653,120200.0,120190.0,0.86349681]
[1755042725347,0.69875332,120200.0,120190.0,0.99585681]
[1755042725480,0.69875332,120200.0,120190.0,0.99589681]
[1755042725685,0.23174602,120200.0,120190.0,0.86349681]
[1755042725925,0.72087132,120200.0,120190.0,0.99593681]
[1755042726144,0.78801778,120200.0,120190.0,0.99593681]
[1755042726461,0.78801778,120200.0,120190.0,0.86349681]
[1755042726605,0.78801778,120200.0,120190.0,0.99589681]
[1755042726796,0.73378946,120200.0,120190.0,0.99589681]
[1755042727247,1.16867744,120200.0,120190.0,0.99589681]
[1755042727477,1.16667744,120200.0,120190.0,0.99589681]
[1755042727707,1.16967744,120200.0,120190.0,0.99589681]
[1755042728828,1.25216187,120200.0,120190.0,0.56026166]
[1755042729048,0.18386606,120180.0,120170.0,0.5]
[1755042729255,0.18411606,120180.0,120170.0,0.5]
[1755042729448,0.61901304,120180.0,120170.0,0.63464]
[1755042729828,0.70173629,120180.0,120170.0,0.2500772]
[1755042730080,0.16643088,120170.0,120160.0,0.15]
[1755042730291,0.70191013,120170.0,120160.0,0.15014585]
[1755042730502,0.16645859,120150.0,120140.0,0.19952]
[1755042730714,0.18390761,120150.0,120140.0,0.47161771]
[1755042731374,0.18390761,120150.0,120140.0,0.60645771]
[1755042731959,0.18390761,120150.0,120140.0,0.27209771]
[1755042732165,0.18490761,120150.0,120140.0,0.60645771]
[1755042732376,0.61980459,120150.0,120140.0,0.60645771]
[1755042732890,0.18490761,120150.0,120140.0,0.47161771]
[1755042733067,0.18490761,120150.0,120140.0,0.60673771]
[1755042733423,0.61980459,120150.0,120140.0,0.53989]
[1755042733641,0.18490761,120150.0,120140.0,0.53989]
[1755042734039,0.61980459,120150.0,120140.0,0.53989]
[1755042736157,0.18490761,120150.0,120140.0,0.40477]
[1755042736357,0.18515761,120150.0,120140.0,0.53792]
[1755042736692,0.62005459,120150.0,120140.0,0.5348]
[1755042737234,0.18515761,120150.0,120140.0,0.5348]
[1755042737431,0.7847557,120150.0,120120.0,0.20316]
[1755042737635,0.1664863,120130.0,120120.0,0.00320859]
[1755042737950,0.6190823,120130.0,120120.0,4.859e-05]
[1755042738148,1.05397928,120130.0,120120.0,4.859e-05]
[1755042738371,1.06962701,120130.0,120120.0,4.859e-05]
[1755042738580,1.15235026,120130.0,120120.0,4.859e-05]
[1755042738943,0.70196555,120130.0,120120.0,4.859e-05]
[1755042739150,0.70180555,120130.0,120120.0,4.859e-05]
[1755042739363,0.70280555,120130.0,120120.0,4.859e-05]
[1755042739580,0.72602456,120130.0,120120.0,0.13572859]
[1755042740023,0.29112758,120130.0,120120.0,0.13572859]
[1755042740233,0.7270247,120130.0,120120.0,0.13572859]
[1755042740419,0.18396304,120110.0,120100.0,0.00316]
[1755042740658,0.16652789,120100.0,120090.0,0.61956771]
[1755042740867,0.60142487,120100.0,120090.0,0.62165771]
[1755042741365,0.18199237,120100.0,120090.0,0.62165771]
[1755042741895,0.18099237,120100.0,120090.0,0.75753771]
[1755042742114,0.61588935,120100.0,120090.0,0.75753771]
[1755042742587,0.62418065,120100.0,120090.0,0.75753771]
[1755042742754,0.61588935,120100.0,120090.0,0.75753771]
[1755042743144,0.6236138,120100.0,120090.0,0.75753771]
[1755042743683,0.6236138,120100.0,120090.0,0.75953771]
[1755042743889,0.18871682,120100.0,120090.0,0.76053771]
[1755042744037,0.6236138,120100.0,120090.0,0.76053771]
[1755042744231,0.6236138,120100.0,120090.0,0.69369]
[1755042744437,0.6238638,120100.0,120090.0,0.55781]
[1755042744637,0.6238638,120100.0,120090.0,0.69385]
[1755042744841,0.18896682,120100.0,120090.0,0.69385]
[1755042745038,0.63203771,120100.0,120090.0,0.69385]
[1755042745386,0.6236138,120100.0,120090.0,0.69385]
[1755042745589,0.18871682,120100.0,120090.0,0.55681]
[1755042745801,0.18871682,120100.0,120090.0,0.69289]
[1755042746006,0.6236138,120100.0,120090.0,0.69289]
[1755042746639,0.18871682,120100.0,120090.0,0.55681]
[1755042746796,0.6236138,120100.0,120090.0,0.69289]
[1755042746983,0.63191595,120100.0,120090.0,0.69289]
[1755042747187,0.64936497,120100.0,120090.0,0.60681]
[1755042747390,0.64936497,120100.0,120090.0,0.34285]
[1755042747596,0.64961497,120100.0,120090.0,0.19956]
[1755042747802,0.21471799,120100.0,120090.0,0.33568]
[1755042747999,0.64961497,120100.0,120090.0,0.33568]
[1755042748445,0.62642604,120100.0,120090.0,0.33568]
[1755042748747,0.64959182,120100.0,120090.0,0.33568]
[1755042749159,0.73231507,120100.0,120090.0,0.33568]
[1755042749566,0.73331507,120100.0,120090.0,0.33568]
[1755042749920,0.75829307,120100.0,120090.0,0.33863]
[1755042750399,0.75929307,120100.0,120090.0,0.33879]
[1755042750685,0.32439609,120100.0,120090.0,0.33879]
[1755042750898,0.75929307,120100.0,120090.0,0.33879]
[1755042751298,0.32439609,120100.0,120090.0,0.33879]
[1755042751477,0.75929307,120100.0,120090.0,0.33879]
[1755042751685,0.32439609,120100.0,120090.0,0.33879]
[1755042751879,0.75929307,120100.0,120090.0,0.33879]
[1755042753221,0.32439609,120100.0,120090.0,0.34091]
[1755042753430,0.75929307,120100.0,120090.0,0.34091]
[1755042753628,0.32439609,120100.0,120090.0,0.34091]
[1755042753936,0.75929307,120100.0,120090.0,0.34091]
[1755042754400,0.32439609,120100.0,120090.0,0.34091]
[1755042754608,0.75930566,120100.0,120090.0,0.20463]
[1755042754717,0.75930566,120100.0,120090.0,0.3358]
[1755042755440,0.75930566,120100.0,120090.0,0.33875]
[1755042757395,0.75930566,120100.0,120090.0,0.34087]
[1755042757611,0.7593616,120100.0,120090.0,0.34087]
[1755042758040,0.73612729,120100.0,120090.0,0.34087]
[1755042758245,0.75937714,120100.0,120090.0,0.34087]
[1755042759179,0.75937714,120100.0,120090.0,0.33875]
[1755042759995,0.75938257,120100.0,120090.0,0.33875]
[1755042760835,0.75939987,120100.0,120090.0,0.33875]
[1755042760984,0.75939987,120100.0,120090.0,0.3358]
[1755042761337,0.75939987,120100.0,120090.0,0.5358]
[1755042762527,0.75939987,120100.0,120090.0,0.53875]
[1755042763077,0.7594153,120100.0,120090.0,0.53875]
[1755042763285,0.7594153,120100.0,120090.0,0.00295]
[1755042763896,0.7594153,120100.0,120090.0,0.00507]
[1755042764536,0.7594153,120100.0,120090.0,0.14099]
[1755042764670,0.7594153,120100.0,120090.0,0.00507]
[1755042764880,0.7594153,120100.0,120090.0,0.14095]
[1755042765702,0.32451832,120100.0,120090.0,0.14095]
[1755042765914,0.7594153,120100.0,120090.0,0.14095]
[1755042766477,0.77733762,120100.0,120090.0,0.14095]
[1755042766893,0.7618276,120100.0,120090.0,0.14095]
[1755042767100,0.78322222,120100.0,120090.0,0.14095]
[1755042767461,0.78323583,120100.0,120090.0,0.14095]
[1755042768251,0.78323583,120100.0,120090.0,0.00507]
[1755042768453,0.78323583,120100.0,120090.0,0.13867]
[1755042768652,0.78323583,120100.0,120090.0,0.00295]
[1755042768858,0.78323583,120100.0,120090.0,0.13863]
[1755042769396,0.78326017,120100.0,120090.0,0.13863]
[1755042769596,0.34836319,120100.0,120090.0,0.13863]
[1755042769835,0.78326017,120100.0,120090.0,0.13863]
[1755042770018,0.78326946,120100.0,120090.0,0.13863]
[1755042770214,0.18399078,120090.0,120080.0,0.49968]
[1755042770413,0.6422655,120090.0,120080.0,0.50194592]
[1755042770678,0.66018782,120090.0,120080.0,0.50194592]
[1755042771577,0.66216782,120090.0,120080.0,0.63766592]
[1755042772174,0.66216782,120090.0,120080.0,0.64061592]
[1755042772774,0.66216782,120090.0,120080.0,0.84061592]
[1755042773176,0.66603669,120090.0,120080.0,0.84061592]
[1755042773696,0.23113971,120090.0,120080.0,0.84061592]
[1755042773906,0.64811437,120090.0,120080.0,0.84061592]
[1755042774098,0.66603669,120090.0,120080.0,0.84061592]
[1755042774511,0.23113971,120090.0,120080.0,0.84061592]
[1755042774711,0.64811437,120090.0,120080.0,0.84061592]
[1755042774848,0.66603669,120090.0,120080.0,0.84061592]
[1755042776172,0.65824411,120090.0,120080.0,0.84061592]
[1755042776415,0.23314634,120090.0,120080.0,0.84061592]
[1755042776639,0.650121,120090.0,120080.0,0.84061592]
[1755042776851,0.65439181,120090.0,120080.0,0.84061592]
[1755042777058,0.66804345,120090.0,120080.0,0.84061592]
[1755042777724,0.23314647,120090.0,120080.0,0.84061592]
[1755042777958,0.65012113,120090.0,120080.0,0.84061592]
[1755042778177,0.66804345,120090.0,120080.0,0.84061592]
[1755042778398,0.64427043,120090.0,120080.0,0.84061592]
[1755042778620,0.6286687,120090.0,120080.0,0.84061592]
[1755042778835,0.64229405,120090.0,120080.0,0.84061592]
[1755042779046,0.64427405,120090.0,120080.0,0.84061592]
[1755042779263,0.20937707,120090.0,120080.0,0.84061592]
[1755042779507,0.64427405,120090.0,120080.0,0.84061592]
[1755042779734,0.20739707,120090.0,120080.0,0.70489592]
[1755042779970,0.18994805,120090.0,120080.0,0.84033592]
[1755042780238,0.02340629,120090.0,120080.0,1.00689154]
[1755042780455,0.02340629,120090.0,120080.0,1.12752479]
[1755042780711,0.02340629,120090.0,120080.0,1.26308479]
[1755042780944,0.02340629,120090.0,120080.0,1.12752479]
[1755042781179,0.02340629,120090.0,120080.0,1.26324479]
[1755042781863,0.02340629,120090.0,120080.0,1.12852479]
[1755042782327,0.01560535,120090.0,120080.0,1.26420479]
[1755042782562,0.01560535,120090.0,120080.0,1.26620479]
[1755042783249,0.17483972,120110.0,120100.0,0.55]
[1755042783469,0.19819973,120110.0,120100.0,0.69079]
[1755042783694,0.19819973,120110.0,120100.0,0.85731789]
[1755042783923,0.19819973,120110.0,120100.0,1.01581883]
[1755042784176,0.17483972,120110.0,120100.0,1.01581883]
[1755042784406,0.19041217,120110.0,120100.0,1.01581883]
[1755042784821,0.17483972,120110.0,120100.0,1.01581883]
[1755042785058,0.19040371,120110.0,120100.0,1.09854208]
[1755042785262,0.17483972,120110.0,120100.0,0.92347325]
[1755042785482,0.17483972,120110.0,120100.0,0.92343325]
[1755042786729,0.17483972,120110.0,120100.0,0.92443325]
[1755042787572,0.17483972,120110.0,120100.0,1.09096114]
[1755042788337,0.17483972,120110.0,120100.0,0.95532114]
[1755042788568,0.17483972,120110.0,120100.0,0.78879325]
[1755042788780,0.17483972,120110.0,120100.0,0.29171]
[1755042788989,0.17681972,120110.0,120100.0,0.15607]
[1755042789197,0.17681972,120110.0,120100.0,0.29195]
[1755042789402,0.6117167,120110.0,120100.0,0.35607]
[1755042789616,0.17681972,120110.0,120100.0,0.49195]
[1755042790466,0.17681972,120110.0,120100.0,0.35607]
[1755042790710,0.17483972,120110.0,120100.0,0.49195]
[1755042792809,0.1747559,120110.0,120100.0,0.49195]
[1755042793017,0.1767359,120110.0,120100.0,0.49195]
[1755042794059,0.1767359,120110.0,120100.0,0.001]
[1755042794060,0.6290819,120110.0,120100.0,0.001]
[1755042794273,0.6321719,120110.0,120100.0,0.001]
[1755042794500,0.6321719,120110.0,120100.0,0.13684]
[1755042795056,0.71489515,120110.0,120100.0,0.001]
[1755042795481,0.16654176,120090.0,120080.0,0.64982592]
[1755042795700,0.60342874,120090.0,120080.0,0.44982592]
[1755042795945,0.60342874,120090.0,120080.0,0.78578592]
[1755042796360,0.18598078,120090.0,120080.0,0.64982592]
[1755042796508,0.62087776,120090.0,120080.0,0.78578592]
[1755042796709,0.18598078,120090.0,120080.0,0.64982592]
[1755042796915,0.18598078,120090.0,120080.0,0.78590592]
[1755042797334,0.62087776,120090.0,120080.0,0.63590592]
[1755042798196,0.18598078,120090.0,120080.0,0.64101592]
[1755042802286,0.18399078,120090.0,120080.0,0.64109592]
[1755042802490,0.18399078,120090.0,120080.0,0.50489592]
[1755042802699,0.18399078,120090.0,120080.0,0.64137592]
[1755042803413,0.18399078,120090.0,120080.0,0.50489592]
[1755042803626,0.18399078,120090.0,120080.0,0.64137592]
[1755042804524,0.18597078,120090.0,120080.0,0.64137592]
[1755042806179,0.18399078,120090.0,120080.0,0.64137592]
[1755042806897,0.62086776,120090.0,120080.0,0.29982592]
[1755042807128,0.62394776,120090.0,120080.0,0.29982592]
[1755042807342,0.63228556,120090.0,120080.0,0.29982592]
[1755042807578,0.63228556,120090.0,120080.0,0.43662592]
[1755042807835,0.71500881,120090.0,120080.0,0.43662592]
[1755042808052,0.73998981,120090.0,120080.0,0.43662592]
[1755042809078,0.74098981,120090.0,120080.0,0.43662592]
[1755042809303,0.74098981,120090.0,120080.0,0.43666592]
[1755042809516,0.74198981,120090.0,120080.0,0.43666592]
[1755042811591,0.30709283,120090.0,120080.0,0.43666592]
[1755042811826,0.74198981,120090.0,120080.0,0.29982592]
[1755042812033,0.74198981,120090.0,120080.0,0.43658592]
[1755042812193,0.74198981,120090.0,120080.0,0.29982592]
[1755042812520,0.74198981,120090.0,120080.0,0.43662592]
[1755042814585,0.18401852,120070.0,120060.0,0.2002]
[1755042814885,0.18599852,120070.0,120060.0,0.2002]
[1755042815115,0.18599852,120070.0,120060.0,0.3372]
[1755042815567,0.6458795,120070.0,120060.0,0.2002]
[1755042815812,0.6458795,120070.0,120060.0,0.33724]
[1755042816271,0.21098252,120070.0,120060.0,0.2002]
[1755042816531,0.6458795,120070.0,120060.0,0.2002]
[1755042816736,0.72860275,120070.0,120060.0,0.0002]
[1755042816914,0.73169275,120070.0,120060.0,0.2002]
[1755042817118,0.16658337,120060.0,120050.0,0.19968]
[1755042817365,0.60346035,120060.0,120050.0,0.33676]
[1755042817924,0.19354937,120060.0,120050.0,0.33676]
[1755042818128,0.62844635,120060.0,120050.0,0.33676]
[1755042818972,0.19354937,120060.0,120050.0,0.33676]
[1755042819169,0.62844635,120060.0,120050.0,0.33676]
[1755042819401,0.19354937,120060.0,120050.0,0.33676]
[1755042819607,0.62944635,120060.0,120050.0,0.33676]
[1755042820164,0.62944635,120060.0,120050.0,0.20498]
[1755042820376,0.62944635,120060.0,120050.0,0.34214]
[1755042820595,0.19256937,120060.0,120050.0,0.34214]